fUST/lending_fUST_20260523
["ID","MTS","AMOUNT","RATE_DAILY","PERIOD"]
[422856037,1779529838000,-5000.0,8.026e-05,2]
[422856044,1779529838000,-500.0,8.107e-05,2]
[422856045,1779529838000,-500.0,8.107e-05,2]
[422856041,1779529838000,-500.0,8.107e-05,2]
[422856042,1779529838000,-500.0,8.107e-05,2]
[422856043,1779529838000,-500.0,8.107e-05,2]
[422856040,1779529838000,-500.0,8.107e-05,2]
[422856038,1779529838000,-500.0,8.107e-05,2]
[422856039,1779529838000,-500.0,8.107e-05,2]
[422856058,1779529838000,-500.0,8.107e-05,2]
[422856048,1779529838000,-500.0,8.107e-05,2]
[422856057,1779529838000,-500.0,8.107e-05,2]
[422856047,1779529838000,-557.42915938,8.107e-05,2]
[422856061,1779529838000,-500.0,8.107e-05,2]
[422856080,1779529838000,-501.23,8.219e-05,2]
[422856060,1779529838000,-500.0,8.107e-05,2]
[422856081,1779529838000,-500.0,8.219e-05,2]
[422856077,1779529838000,-721.92,8.219e-05,2]
[422856079,1779529838000,-500.0,8.219e-05,2]
[422856078,1779529838000,-524.47,8.219e-05,2]
[422856076,1779529838000,-500.0,8.219e-05,2]
[422856074,1779529838000,-1914.78,8.219e-05,2]
[422856073,1779529838000,-500.0,8.219e-05,2]
[422856072,1779529838000,-500.0,8.219e-05,2]
[422856070,1779529838000,-500.0,8.219e-05,2]
[422856075,1779529838000,-500.0,8.219e-05,2]
[422856071,1779529838000,-514.43,8.219e-05,2]
[422856069,1779529838000,-665.01,8.219e-05,2]
[422856063,1779529838000,-500.0,8.107e-05,2]
[422856066,1779529838000,-500.0,8.201e-05,2]
[422856067,1779529838000,-500.0,8.201e-05,2]
[422856065,1779529838000,-500.0,8.107e-05,2]
[422856068,1779529838000,-500.0,8.201e-05,2]
[422856064,1779529838000,-500.0,8.107e-05,2]
[422856062,1779529838000,-500.0,8.107e-05,2]
[422856059,1779529838000,-500.0,8.107e-05,2]
[422856123,1779529839000,-195.70000625,8.219e-05,7]
[422856126,1779529839000,-388.03526633,8.219e-05,7]
[422856121,1779529839000,-354.17844582,8.219e-05,7]
[422856122,1779529839000,-307.82174837,8.219e-05,7]
[422856118,1779529839000,-151.0,8.219e-05,2]
[422856120,1779529839000,-157.97562407,8.219e-05,2]
[422856117,1779529839000,-500.0,8.219e-05,2]
[422856116,1779529839000,-216.14634278,8.219e-05,2]
[422856115,1779529839000,-500.0,8.219e-05,2]
[422856119,1779529839000,-151.0,8.219e-05,2]
[422856124,1779529839000,-207.10940147,8.219e-05,7]
[422856125,1779529839000,-231.71513654,8.219e-05,7]
[422856128,1779529839000,-351.12925018,8.219e-05,7]
[422856136,1779529839000,-528.00409266,8.219e-05,7]
[422856133,1779529839000,-326.5494062,8.219e-05,7]
[422856131,1779529839000,-495.95480519,8.219e-05,7]
[422856129,1779529839000,-165.3182684,8.219e-05,7]
[422856127,1779529839000,-175.56462509,8.219e-05,7]
[422856130,1779529839000,-330.63653679,8.219e-05,7]
[422856134,1779529839000,-176.00136422,8.219e-05,7]
[422856135,1779529839000,-352.00272844,8.219e-05,7]
[422856137,1779529839000,-188.80968373,8.219e-05,7]
[422856114,1779529839000,-500.0,8.219e-05,2]
[422856138,1779529839000,-377.61936746,8.219e-05,7]
[422856139,1779529839000,-175.59846332,8.219e-05,7]
[422856140,1779529839000,-356.72984511,8.219e-05,7]
[422856145,1779529839000,-211.6273567,8.219e-05,7]
[422856146,1779529839000,-203.06210565,8.219e-05,7]
[422856132,1779529839000,-191.35996319,8.219e-05,7]
[422856112,1779529839000,-1076.03,8.219e-05,2]
[422856104,1779529839000,-500.0,8.219e-05,2]
[422856111,1779529839000,-500.0,8.219e-05,2]
[422856141,1779529839000,-535.09476766,8.219e-05,7]
[422856083,1779529839000,-500.0,8.219e-05,2]
[422856082,1779529839000,-1878.14,8.219e-05,2]
[422856085,1779529839000,-649.17,8.219e-05,2]
[422856084,1779529839000,-520.74,8.219e-05,2]
[422856086,1779529839000,-1349.48,8.219e-05,2]
[422856087,1779529839000,-500.0,8.219e-05,2]
[422856088,1779529839000,-500.0,8.219e-05,2]
[422856091,1779529839000,-500.0,8.219e-05,2]
[422856092,1779529839000,-1416.4,8.219e-05,2]
[422856094,1779529839000,-545.4,8.219e-05,2]
[422856095,1779529839000,-261.98144838,8.219e-05,2]
[422856090,1779529839000,-516.35858038,8.219e-05,2]
[422856113,1779529839000,-1389.47,8.219e-05,2]
[422856093,1779529839000,-500.0,8.219e-05,2]
[422856096,1779529839000,-294.68855162,8.219e-05,2]
[422856097,1779529839000,-777.47,8.219e-05,2]
[422856099,1779529839000,-500.0,8.219e-05,2]
[422856100,1779529839000,-500.0,8.219e-05,2]
[422856101,1779529839000,-500.0,8.219e-05,2]
[422856106,1779529839000,-500.0,8.219e-05,2]
[422856108,1779529839000,-500.0,8.219e-05,2]
[422856105,1779529839000,-500.0,8.219e-05,2]
[422856102,1779529839000,-1764.5,8.219e-05,2]
[422856107,1779529839000,-500.0,8.219e-05,2]
[422856103,1779529839000,-758.36,8.219e-05,2]
[422856109,1779529839000,-507.86,8.219e-05,2]
[422856110,1779529839000,-500.0,8.219e-05,2]
[422856089,1779529839000,-1083.06,8.219e-05,2]
[422856143,1779529839000,-352.15193175,8.219e-05,7]
[422856098,1779529839000,-8809.4,8.219e-05,2]
[422856144,1779529839000,-528.22789762,8.219e-05,7]
[422856181,1779529839000,-152.53439311,8.219e-05,7]
[422856184,1779529839000,-457.60317933,8.219e-05,7]
[422856183,1779529839000,-367.40084552,8.219e-05,7]
[422856182,1779529839000,-305.06878622,8.219e-05,7]
[422856180,1779529839000,-548.81485796,8.219e-05,7]
[422856185,1779529839000,-551.10126828,8.219e-05,7]
[422856186,1779529839000,-610.13757244,8.219e-05,7]
[422856188,1779529839000,-193.01852966,8.219e-05,7]
[422856190,1779529839000,-233.0152551,8.219e-05,7]
[422856189,1779529839000,-386.03705931,8.219e-05,7]
[422856187,1779529839000,-734.80169105,8.219e-05,7]
[422856191,1779529839000,-466.03051019,8.219e-05,7]
[422856195,1779529839000,-204.07144601,8.219e-05,7]
[422856179,1779529839000,-365.87657197,8.219e-05,7]
[422856197,1779529839000,-197.65838476,8.219e-05,7]
[422856196,1779529839000,-408.14289203,8.219e-05,7]
[422856193,1779529839000,-291.7482055,8.219e-05,7]
[422856198,1779529839000,-395.31676951,8.219e-05,7]
[422856200,1779529839000,-307.00446991,8.219e-05,7]
[422856201,1779529839000,-460.50670486,8.219e-05,7]
[422856205,1779529839000,-180.16163723,8.219e-05,7]
[422856202,1779529839000,-614.00893982,8.219e-05,7]
[422856199,1779529839000,-153.50223495,8.219e-05,7]
[422856203,1779529839000,-731.75314395,8.219e-05,7]
[422856207,1779529839000,-394.94020768,8.219e-05,7]
[422856206,1779529839000,-197.47010384,8.219e-05,7]
[422856208,1779529839000,-159.46695563,8.219e-05,7]
[422856142,1779529839000,-176.07596587,8.219e-05,7]
[422856194,1779529839000,-583.49641101,8.219e-05,7]
[422856176,1779529839000,-390.29664615,8.219e-05,7]
[422856192,1779529839000,-168.32652855,8.219e-05,7]
[422856178,1779529839000,-780.5932923,8.219e-05,7]
[422856148,1779529839000,-609.18631694,8.219e-05,7]
[422856175,1779529839000,-195.14832308,8.219e-05,7]
[422856147,1779529839000,-406.12421129,8.219e-05,7]
[422856149,1779529839000,-608.3712277,8.219e-05,7]
[422856150,1779529839000,-169.17197345,8.219e-05,7]
[422856151,1779529839000,-338.34394691,8.219e-05,7]
[422856152,1779529839000,-210.95832434,8.219e-05,2]
[422856153,1779529839000,-208.4967393,8.219e-05,7]
[422856154,1779529839000,-246.70246833,8.219e-05,7]
[422856156,1779529839000,-193.63412931,8.219e-05,7]
[422856155,1779529839000,-168.63967944,8.219e-05,7]
[422856159,1779529839000,-155.05199374,8.219e-05,7]
[422856158,1779529839000,-580.90238793,8.219e-05,7]
[422856160,1779529839000,-310.10398747,8.219e-05,7]
[422856164,1779529839000,-182.95967554,8.219e-05,7]
[422856157,1779529839000,-387.26825862,8.219e-05,7]
[422856177,1779529839000,-585.44496923,8.219e-05,7]
[422856162,1779529839000,-620.20797495,8.219e-05,7]
[422856174,1779529839000,-646.95686203,8.219e-05,7]
[422856170,1779529839000,-621.48398329,8.219e-05,7]
[422856168,1779529839000,-310.74199165,8.219e-05,7]
[422856171,1779529839000,-161.73921551,8.219e-05,7]
[422856169,1779529839000,-466.11298747,8.219e-05,7]
[422856172,1779529839000,-323.47843102,8.219e-05,7]
[422856166,1779529839000,-332.09220198,8.219e-05,7]
[422856165,1779529839000,-166.04610099,8.219e-05,7]
[422856161,1779529839000,-465.15598121,8.219e-05,7]
[422856163,1779529839000,-182.93828599,8.219e-05,7]
[422856167,1779529839000,-155.37099582,8.219e-05,7]
[422856173,1779529839000,-485.21764652,8.219e-05,7]
[422856259,1779529840000,-519.99009273,8.219e-05,7]
[422856254,1779529840000,-360.32327445,8.219e-05,7]
[422856260,1779529840000,-693.32012365,8.219e-05,7]
[422856261,1779529840000,-234.37242078,8.219e-05,7]
[422856257,1779529840000,-173.33003091,8.219e-05,7]
[422856248,1779529840000,-664.25180489,8.219e-05,7]
[422856255,1779529840000,-540.48491168,8.219e-05,7]
[422856251,1779529840000,-184.41770405,8.219e-05,7]
[422856249,1779529840000,-885.66907319,8.219e-05,7]
[422856252,1779529840000,-368.83540809,8.219e-05,7]
[422856253,1779529840000,-553.25311214,8.219e-05,7]
[422856258,1779529840000,-346.66006182,8.219e-05,7]
[422856250,1779529840000,-166.53608043,8.219e-05,7]
[422856256,1779529840000,-500.0,8.219e-05,2]
[422856276,1779529840000,-154.24312811,8.219e-05,7]
[422856263,1779529840000,-703.11726233,8.219e-05,7]
[422856267,1779529840000,-4305.81402441,8.219e-05,7]
[422856265,1779529840000,-2152.9070122,8.219e-05,7]
[422856264,1779529840000,-1076.4535061,8.219e-05,7]
[422856268,1779529840000,-181.2004986,8.219e-05,7]
[422856266,1779529840000,-3229.36051831,8.219e-05,7]
[422856270,1779529840000,-543.60149579,8.219e-05,7]
[422856271,1779529840000,-724.80199439,8.219e-05,7]
[422856272,1779529840000,-725.06449097,8.219e-05,7]
[422856269,1779529840000,-362.40099719,8.219e-05,7]
[422856273,1779529840000,-152.0840898,8.219e-05,7]
[422856274,1779529840000,-304.16817961,8.219e-05,7]
[422856245,1779529840000,-486.67464773,8.219e-05,7]
[422856262,1779529840000,-468.74484155,8.219e-05,7]
[422856247,1779529840000,-442.83453659,8.219e-05,7]
[422856211,1779529840000,-342.75600286,8.219e-05,7]
[422856246,1779529840000,-221.4172683,8.219e-05,7]
[422856210,1779529840000,-171.37800143,8.219e-05,7]
[422856275,1779529840000,-263.03133021,8.219e-05,7]
[422856209,1779529840000,-318.93391125,8.219e-05,7]
[422856212,1779529840000,-514.1340043,8.219e-05,7]
[422856213,1779529840000,-685.51200573,8.219e-05,7]
[422856215,1779529840000,-164.4556887,8.219e-05,7]
[422856217,1779529840000,-328.91137741,8.219e-05,7]
[422856221,1779529840000,-657.82275481,8.219e-05,7]
[422856219,1779529840000,-493.36706611,8.219e-05,7]
[422856224,1779529840000,-330.77114572,8.219e-05,7]
[422856223,1779529840000,-165.38557286,8.219e-05,7]
[422856225,1779529840000,-496.15671858,8.219e-05,7]
[422856226,1779529840000,-661.54229144,8.219e-05,7]
[422856227,1779529840000,-180.35307588,8.219e-05,7]
[422856243,1779529840000,-780.53825802,8.219e-05,7]
[422856229,1779529840000,-541.05922764,8.219e-05,7]
[422856231,1779529840000,-566.42905119,8.219e-05,7]
[422856233,1779529840000,-162.59494899,8.219e-05,7]
[422856236,1779529840000,-316.86125661,8.219e-05,7]
[422856235,1779529840000,-158.43062831,8.219e-05,7]
[422856232,1779529840000,-755.23873492,8.219e-05,7]
[422856234,1779529840000,-374.69800626,8.219e-05,7]
[422856230,1779529840000,-724.00815161,8.219e-05,7]
[422856238,1779529840000,-633.72251323,8.219e-05,7]
[422856239,1779529840000,-473.28862299,8.219e-05,7]
[422856237,1779529840000,-475.29188492,8.219e-05,7]
[422856240,1779529840000,-631.05149731,8.219e-05,7]
[422856242,1779529840000,-696.78529492,8.219e-05,7]
[422856241,1779529840000,-174.19632373,8.219e-05,7]
[422856244,1779529840000,-243.33732386,8.219e-05,7]
[422856228,1779529840000,-360.70615176,8.219e-05,7]
[422856277,1779529840000,-265.77773423,8.219e-05,7]
[422856284,1779529840000,-670.84820501,8.219e-05,7]
[422856279,1779529840000,-797.33320268,8.219e-05,7]
[422856309,1779529840000,-446.83205874,8.219e-05,7]
[422856315,1779529840000,-357.82922115,8.219e-05,7]
[422856316,1779529840000,-536.74383173,8.219e-05,7]
[422856319,1779529840000,-158.58038032,8.219e-05,7]
[422856320,1779529840000,-317.16076065,8.219e-05,7]
[422856317,1779529840000,-171.05639077,8.219e-05,7]
[422856321,1779529840000,-791.10976702,8.219e-05,7]
[422856318,1779529840000,-342.11278155,8.219e-05,7]
[422856322,1779529840000,-475.74114097,8.219e-05,7]
[422856323,1779529840000,-634.3215213,8.219e-05,7]
[422856324,1779529840000,-302.07889539,8.219e-05,7]
[422856325,1779529840000,-453.11834309,8.219e-05,7]
[422856327,1779529840000,-526.06266041,8.219e-05,7]
[422856326,1779529840000,-604.15779079,8.219e-05,7]
[422856328,1779529840000,-789.09399062,8.219e-05,7]
[422856329,1779529840000,-456.25226941,8.219e-05,7]
[422856331,1779529840000,-608.33635921,8.219e-05,7]
[422856330,1779529840000,-1052.12532083,8.219e-05,7]
[422856334,1779529840000,-595.00891825,8.219e-05,7]
[422856278,1779529840000,-531.55546845,8.219e-05,7]
[422856332,1779529840000,-151.0394477,8.219e-05,7]
[422856336,1779529840000,-793.34522433,8.219e-05,7]
[422856335,1779529840000,-396.67261217,8.219e-05,7]
[422856337,1779529840000,-361.25262846,8.219e-05,7]
[422856338,1779529840000,-541.87894269,8.219e-05,7]
[422856339,1779529840000,-722.50525692,8.219e-05,7]
[422856340,1779529840000,-242.98571135,8.219e-05,7]
[422856342,1779529840000,-728.95713404,8.219e-05,7]
[422856341,1779529840000,-485.9714227,8.219e-05,7]
[422856310,1779529840000,-893.66411749,8.219e-05,7]
[422856313,1779529840000,-2175.19347291,8.219e-05,7]
[422856333,1779529840000,-198.33630608,8.219e-05,7]
[422856311,1779529840000,-581.21425225,8.219e-05,7]
[422856314,1779529840000,-2900.25796388,8.219e-05,7]
[422856281,1779529840000,-167.71205125,8.219e-05,7]
[422856282,1779529840000,-335.42410251,8.219e-05,7]
[422856280,1779529840000,-1063.1109369,8.219e-05,7]
[422856283,1779529840000,-503.13615376,8.219e-05,7]
[422856287,1779529840000,-183.49704303,8.219e-05,7]
[422856286,1779529840000,-180.62631423,8.219e-05,7]
[422856288,1779529840000,-366.99408606,8.219e-05,7]
[422856290,1779529840000,-733.98817211,8.219e-05,7]
[422856289,1779529840000,-550.49112908,8.219e-05,7]
[422856291,1779529840000,-704.30386349,8.219e-05,7]
[422856293,1779529840000,-432.30513414,8.219e-05,7]
[422856294,1779529840000,-471.36590573,8.219e-05,7]
[422856292,1779529840000,-216.15256707,8.219e-05,7]
[422856285,1779529840000,-427.49418507,8.219e-05,7]
[422856297,1779529840000,-1282.48255521,8.219e-05,7]
[422856312,1779529840000,-774.95233634,8.219e-05,7]
[422856295,1779529840000,-628.48787431,8.219e-05,7]
[422856305,1779529840000,-235.45510955,8.219e-05,7]
[422856306,1779529840000,-308.48625621,8.219e-05,7]
[422856307,1779529840000,-462.72938432,8.219e-05,7]
[422856304,1779529840000,-641.15662881,8.219e-05,7]
[422856308,1779529840000,-616.97251242,8.219e-05,7]
[422856303,1779529840000,-160.2891572,8.219e-05,7]
[422856300,1779529840000,-485.85003797,8.219e-05,7]
[422856298,1779529840000,-1709.97674028,8.219e-05,7]
[422856301,1779529840000,-1450.12898194,8.219e-05,7]
[422856299,1779529840000,-242.92501899,8.219e-05,7]
[422856296,1779529840000,-854.98837014,8.219e-05,7]
[422856302,1779529840000,-242.78501204,8.219e-05,7]
[422856366,1779529841000,-223.41602937,8.219e-05,7]
[422856374,1779529841000,-500.0,8.493e-05,2]
[422856368,1779529841000,-189.69794256,8.219e-05,7]
[422856367,1779529841000,-670.24808812,8.219e-05,7]
[422856370,1779529841000,-569.09382767,8.219e-05,7]
[422856369,1779529841000,-379.39588511,8.219e-05,7]
[422856372,1779529841000,-1368.5381,8.493e-05,2]
[422856371,1779529841000,-758.79177022,8.219e-05,7]
[422856373,1779529841000,-500.0,8.493e-05,2]
[422856381,1779529841000,-500.0,8.493e-05,2]
[422856380,1779529841000,-500.0,8.493e-05,2]
[422856379,1779529841000,-500.0,8.493e-05,2]
[422856377,1779529841000,-500.0,8.493e-05,2]
[422856375,1779529841000,-500.0,8.493e-05,2]
[422856376,1779529841000,-500.0,8.493e-05,2]
[422856382,1779529841000,-183.373081,8.493e-05,2]
[422856383,1779529841000,-183.373081,8.493e-05,2]
[422856384,1779529841000,-183.373081,8.493e-05,2]
[422856363,1779529841000,-470.91021911,8.219e-05,7]
[422856378,1779529841000,-500.0,8.493e-05,2]
[422856361,1779529841000,-728.35503611,8.219e-05,7]
[422856349,1779529841000,-474.57353474,8.219e-05,7]
[422856365,1779529841000,-706.36532866,8.219e-05,7]
[422856385,1779529841000,-183.373081,8.493e-05,2]
[422856344,1779529841000,-209.26026627,8.219e-05,7]
[422856347,1779529841000,-333.07216087,8.219e-05,7]
[422856346,1779529841000,-627.78079882,8.219e-05,7]
[422856345,1779529841000,-418.52053254,8.219e-05,7]
[422856343,1779529841000,-971.94284539,8.219e-05,7]
[422856348,1779529841000,-158.19117825,8.219e-05,7]
[422856350,1779529841000,-316.38235649,8.219e-05,7]
[422856351,1779529841000,-632.76471299,8.219e-05,7]
[422856352,1779529841000,-201.1772431,8.219e-05,7]
[422856353,1779529841000,-402.3544862,8.219e-05,7]
[422856355,1779529841000,-804.70897241,8.219e-05,7]
[422856354,1779529841000,-603.53172931,8.219e-05,7]
[422856356,1779529841000,-583.74546068,8.219e-05,7]
[422856358,1779529841000,-320.57831441,8.219e-05,7]
[422856357,1779529841000,-778.32728091,8.219e-05,7]
[422856359,1779529841000,-480.86747161,8.219e-05,7]
[422856360,1779529841000,-485.57002407,8.219e-05,7]
[422856362,1779529841000,-971.14004814,8.219e-05,7]
[422856364,1779529841000,-941.82043821,8.219e-05,7]
[422856386,1779529841000,-503.63,8.493e-05,2]
[422856424,1779529841000,-1416.4,8.493e-05,2]
[422856389,1779529841000,-500.0,8.493e-05,2]
[422856414,1779529841000,-573.14403511,8.493e-05,2]
[422856415,1779529841000,-1878.14,8.493e-05,2]
[422856412,1779529841000,-500.0,8.493e-05,2]
[422856417,1779529841000,-520.74,8.493e-05,2]
[422856416,1779529841000,-500.0,8.493e-05,2]
[422856418,1779529841000,-649.17,8.493e-05,2]
[422856419,1779529841000,-1349.48,8.493e-05,2]
[422856421,1779529841000,-500.0,8.493e-05,2]
[422856432,1779529841000,-954.63932051,8.493e-05,2]
[422856426,1779529841000,-545.4,8.493e-05,2]
[422856422,1779529841000,-1083.06,8.493e-05,2]
[422856423,1779529841000,-500.0,8.493e-05,2]
[422856425,1779529841000,-500.0,8.493e-05,2]
[422856428,1779529841000,-777.47,8.493e-05,2]
[422856427,1779529841000,-556.67,8.493e-05,2]
[422856429,1779529841000,-29.54059264,8.493e-05,2]
[422856431,1779529841000,-2106.40144417,8.493e-05,2]
[422856430,1779529841000,-152.0,5.675e-05,7]
[422856387,1779529841000,-500.0,8.493e-05,2]
[422856413,1779529841000,-501.23,8.493e-05,2]
[422856409,1779529841000,-500.0,8.493e-05,2]
[422856420,1779529841000,-367.88040388,8.493e-05,2]
[422856406,1779529841000,-500.0,8.493e-05,2]
[422856390,1779529841000,-500.0,8.493e-05,2]
[422856392,1779529841000,-500.0,8.493e-05,2]
[422856410,1779529841000,-721.92,8.493e-05,2]
[422856391,1779529841000,-500.0,8.493e-05,2]
[422856394,1779529841000,-500.0,8.493e-05,2]
[422856393,1779529841000,-500.0,8.493e-05,2]
[422856395,1779529841000,-500.0,8.493e-05,2]
[422856396,1779529841000,-282.613364,8.493e-05,2]
[422856397,1779529841000,-282.613364,8.493e-05,2]
[422856401,1779529841000,-500.0,8.493e-05,2]
[422856388,1779529841000,-500.0,8.493e-05,2]
[422856402,1779529841000,-665.01,8.493e-05,2]
[422856400,1779529841000,-282.613364,8.493e-05,2]
[422856408,1779529841000,-500.0,8.493e-05,2]
[422856411,1779529841000,-524.47,8.493e-05,2]
[422856407,1779529841000,-1914.78,8.493e-05,2]
[422856404,1779529841000,-514.43,8.493e-05,2]
[422856403,1779529841000,-500.0,8.493e-05,2]
[422856398,1779529841000,-151.0,8.493e-05,2]
[422856399,1779529841000,-282.613364,8.493e-05,2]
[422856405,1779529841000,-500.0,8.493e-05,2]
[422856540,1779529847000,-307.2662933,8.493e-05,2]
[422856544,1779529847000,-507.86,8.493e-05,2]
[422856547,1779529847000,-151.0,8.493e-05,2]
[422856545,1779529847000,-500.0,8.493e-05,2]
[422856548,1779529847000,-1389.47,8.493e-05,2]
[422856543,1779529847000,-500.0,8.493e-05,2]
[422856541,1779529847000,-192.7337067,8.493e-05,2]
[422856539,1779529847000,-500.0,8.493e-05,2]
[422856535,1779529847000,-500.0,8.493e-05,2]
[422856538,1779529847000,-500.0,8.493e-05,2]
[422856537,1779529847000,-758.36,8.493e-05,2]
[422856534,1779529847000,-500.0,8.493e-05,2]
[422856533,1779529847000,-500.0,8.493e-05,2]
[422856531,1779529847000,-600.0,8.383e-05,2]
[422856532,1779529847000,-5718.81864268,8.493e-05,2]
[422856542,1779529847000,-480.24859285,8.493e-05,2]
[422856536,1779529847000,-1764.5,8.493e-05,2]
[422856546,1779529847000,-500.0,8.493e-05,2]
[422856559,1779529847000,-822.27844352,8.496e-05,7]
[422856549,1779529847000,-1076.03,8.493e-05,2]
[422856550,1779529847000,-500.0,8.493e-05,2]
[422856567,1779529847000,-775.25996869,8.496e-05,7]
[422856568,1779529847000,-4232.0084453,8.496e-05,7]
[422856565,1779529847000,-866.65015456,8.496e-05,7]
[422856562,1779529847000,-788.81437164,8.496e-05,7]
[422856564,1779529847000,-880.4730014,8.496e-05,7]
[422856563,1779529847000,-975.67282252,8.496e-05,7]
[422856561,1779529847000,-488.81308126,8.496e-05,7]
[422856560,1779529847000,-416.19710825,8.496e-05,7]
[422856566,1779529847000,-836.65788199,8.496e-05,7]
[422856558,1779529847000,-797.33477813,8.496e-05,7]
[422856557,1779529847000,-988.29192378,8.496e-05,7]
[422856556,1779529847000,-918.50211381,8.496e-05,7]
[422856553,1779529847000,-795.67851271,8.496e-05,7]
[422856554,1779529847000,-808.69607754,8.496e-05,7]
[422856555,1779529847000,-975.74161538,8.496e-05,7]
[422856552,1779529847000,-500.0,8.493e-05,2]
[422856551,1779529847000,-500.0,8.493e-05,2]
[422856577,1779530526000,863.09,0.000178,120]
[422856662,1779531032000,-506.63821813,8.202e-05,2]
[422856676,1779531032000,-151.0,8.219e-05,2]
[422856674,1779531032000,-151.0,8.219e-05,2]
[422856663,1779531032000,-50000.0,8.203e-05,2]
[422856671,1779531032000,-151.0,8.219e-05,2]
[422856667,1779531032000,-151.0,8.219e-05,2]
[422856665,1779531032000,-1256.7922,8.219e-05,2]
[422856660,1779531032000,-45874.98321096,8.119e-05,2]
[422856672,1779531032000,-151.0,8.219e-05,2]
[422856659,1779531032000,-500.0,8.118e-05,2]
[422856642,1779531032000,-5000.0,5.236e-05,2]
[422856648,1779531032000,-636.35260843,7.369e-05,2]
[422856655,1779531032000,-500.0,8.118e-05,2]
[422856654,1779531032000,-173.04768437,8.118e-05,2]
[422856649,1779531032000,-259.81368636,7.628e-05,2]
[422856645,1779531032000,-95.9316765,5.369e-05,2]
[422856652,1779531032000,-360.31,8.118e-05,2]
[422856646,1779531032000,-500.0,5.674e-05,2]
[422856644,1779531032000,-443.35019505,5.369e-05,2]
[422856643,1779531032000,-5000.0,5.289e-05,2]
[422856678,1779531032000,-151.0,8.219e-05,2]
[422856657,1779531032000,-583.67603353,8.118e-05,2]
[422856669,1779531032000,-151.0,8.219e-05,2]
[422856699,1779531032000,-500.0,8.219e-05,2]
[422856681,1779531032000,-151.0,8.219e-05,2]
[422856679,1779531032000,-151.0,8.219e-05,2]
[422856705,1779531032000,-500.0,8.219e-05,2]
[422856703,1779531032000,-500.0,8.219e-05,2]
[422856698,1779531032000,-500.0,8.219e-05,2]
[422856701,1779531032000,-500.0,8.219e-05,2]
[422856700,1779531032000,-500.0,8.219e-05,2]
[422856702,1779531032000,-986.36,8.219e-05,2]
[422856696,1779531032000,-500.0,8.219e-05,2]
[422856697,1779531032000,-352.56447413,8.219e-05,2]
[422856695,1779531032000,-500.0,8.219e-05,2]
[422856704,1779531032000,-500.0,8.219e-05,2]
[422856694,1779531032000,-500.0,8.219e-05,2]
[422856691,1779531032000,-500.0,8.219e-05,2]
[422856683,1779531032000,-151.0,8.219e-05,2]
[422856688,1779531032000,-500.0,8.219e-05,2]
[422856686,1779531032000,-151.0,8.219e-05,2]
[422856687,1779531032000,-500.0,8.219e-05,2]
[422856685,1779531032000,-151.0,8.219e-05,2]
[422856689,1779531032000,-314.84058783,8.219e-05,2]
[422856690,1779531032000,-500.0,8.219e-05,2]
[422856692,1779531032000,-444.48111124,8.219e-05,2]
[422856693,1779531032000,-500.0,8.219e-05,2]
[422856734,1779531033000,-500.0,8.219e-05,2]
[422856733,1779531033000,-8116.95,8.219e-05,2]
[422856735,1779531033000,-500.0,8.219e-05,2]
[422856732,1779531033000,-500.0,8.219e-05,2]
[422856736,1779531033000,-695.17,8.219e-05,2]
[422856739,1779531033000,-500.0,8.219e-05,2]
[422856737,1779531033000,-500.0,8.219e-05,2]
[422856731,1779531033000,-712.68,8.219e-05,2]
[422856738,1779531033000,-1659.13,8.219e-05,2]
[422856745,1779531033000,-500.0,8.219e-05,2]
[422856742,1779531033000,-500.0,8.219e-05,2]
[422856741,1779531033000,-500.0,8.219e-05,2]
[422856743,1779531033000,-500.0,8.219e-05,2]
[422856744,1779531033000,-500.0,8.219e-05,2]
[422856750,1779531033000,-342.95435703,8.219e-05,7]
[422856747,1779531033000,-1273.68,8.219e-05,2]
[422856746,1779531033000,-500.0,8.219e-05,2]
[422856752,1779531033000,-685.90871406,8.219e-05,7]
[422856729,1779531033000,-500.0,8.219e-05,2]
[422856749,1779531033000,-171.47717852,8.219e-05,7]
[422856740,1779531033000,-500.0,8.219e-05,2]
[422856728,1779531033000,-992.8,8.219e-05,2]
[422856717,1779531033000,-500.0,8.219e-05,2]
[422856725,1779531033000,-1340.04,8.219e-05,2]
[422856751,1779531033000,-514.43153555,8.219e-05,7]
[422856706,1779531033000,-609.59,8.219e-05,2]
[422856709,1779531033000,-1755.22,8.219e-05,2]
[422856708,1779531033000,-500.0,8.219e-05,2]
[422856710,1779531033000,-500.0,8.219e-05,2]
[422856707,1779531033000,-500.0,8.219e-05,2]
[422856711,1779531033000,-500.0,8.219e-05,2]
[422856712,1779531033000,-500.0,8.219e-05,2]
[422856713,1779531033000,-189.78874693,8.219e-05,2]